Cogmind - Beta 11.1 @@@ ROGUE MODE // 2022.08.22 @ 15:31:09 Player: deadnoob Result: Destroyed by S-27 Virus with Autogun Performance ------------- Evolutions (3) 1500 Regions Visited (11) 2200 Robots Destroyed (56) 280 Value Destroyed (1753) 1753 Prototype IDs (7) 140 Alien Tech Used (0) 0 Bonus (591) 591 TOTAL SCORE: 6464 Bonus ------- Follower Combat Kills 733 Friendly Fire -142 Cogmind --------- Core Integrity 0/700 Matter 300/300 Energy 100/100 System Corruption 13% Temperature Cool (4) Movement Flying (35) Location -7/Lower Caves Parts ------- > --- POWER (1) -------- (None) > --- PROPULSION (4) --- Improved VTOL Module > --- UTILITY (6) ------ Visual Processing Unit Improved Signal Interpreter Terrain Scan Processor > --- WEAPON (2) ------- (None) > --- INVENTORY (5) ---- Improved Deuterium Engine Compact Matter Pod (150) Precision Beam Rifle Particle Cannon Peak State ------------ > --- POWER ------------ Improved Deuterium Engine > --- PROPULSION ------- Armored Treads Aluminum Leg Improved VTOL Module Improved VTOL Module > --- UTILITY ---------- Huge Storage Unit Targeting Computer Advanced Targeting Computer Hardened Heavy Armor Plating Light Regenerative Plating > --- WEAPON ----------- Enhanced Autogun Enhanced Autogun > --- INVENTORY -------- Light Nuclear Core Improved VTOL Module Improved VTOL Module Improved Cooling System Visual Processing Unit Improved Sensor Array Improved Signal Interpreter Improved Terrain Scanner Terrain Scan Processor Transport Network Coupler Advanced Targeting Computer Advanced Targeting Computer Target Analyzer Reaction Control System Hardened Heavy Armor Plating Precision Beam Rifle Precision Beam Rifle Precision Beam Rifle Plasma Cannon Plasma Cannon Enhanced Autogun [Rating: 50] Favorites ----------- Power Ion Engine Engine Ion Engine Power Core Light Nuclear Core Propulsion Aluminum Leg Treads Light Treads Leg Aluminum Leg Wheel Wheel Flight Unit Improved VTOL Module Utility Huge Storage Unit Device Improved Cooling System Storage Huge Storage Unit Processor Targeting Computer Protection Light Regenerative Plating Weapon Enhanced Autogun Energy Gun EM Pulse Gun Energy Cannon Plasma Cannon Ballistic Gun Enhanced Autogun Launcher Rocket Launcher Special Weapon Mining Laser Build | -11 -10 -10 -10 -9 -8 -8 -7 -7 -7 -7 -7 ------- Run | Scr Mat Min Exi Min Mat Sto Fac Was Fac Low Low Slots Evolved 6 | . . . . . 4 . 2 . . . . Power . | . . . . . . . . . . . . Propulsion 2 | . . . . . 2 . . . . . . Utility 4 | . . . . . 2 . 2 . . . . Weapon . | . . . . . . . . . . . . Parts Attached 101 | 6 11 2 . 13 19 12 16 11 2 3 6 Power 11 | 1 1 . . 2 1 2 1 1 . 1 1 Engine 8 | 1 1 . . 2 . 1 1 . . 1 1 Core 3 | . . . . . 1 1 . 1 . . . Reactor . | . . . . . . . . . . . . Propulsion 30 | 2 3 . . 2 5 4 8 4 1 . 1 Treads 3 | . . . . . . 2 1 . . . . Leg 14 | 2 . . . 2 5 . 5 . . . . Wheel 3 | . 3 . . . . . . . . . . Hover . | . . . . . . . . . . . . Flight 10 | . . . . . . 2 2 4 1 . 1 Utility 33 | 1 2 . . 6 5 2 6 6 1 1 3 Device 15 | . 1 . . 3 2 . 2 3 1 1 2 Storage 3 | 1 1 . . . . . . . . . 1 Processor 6 | . . . . 1 . 1 1 3 . . . Hackware . | . . . . . . . . . . . . Protection 9 | . . . . 2 3 1 3 . . . . Artifact . | . . . . . . . . . . . . Weapon 27 | 2 5 2 . 3 8 4 1 . . 1 1 Energy Gun 4 | . . . . . 2 1 . . . 1 . Energy Cannon 5 | . . . . . 4 . . . . . 1 Ballistic Gun 13 | 2 4 . . 3 . 3 1 . . . . Ballistic Cannon . | . . . . . . . . . . . . Launcher 4 | . . 2 . . 2 . . . . . . Special Weapon 1 | . 1 . . . . . . . . . . Impact Weapon . | . . . . . . . . . . . . Slashing Weapon . | . . . . . . . . . . . . Piercing Weapon . | . . . . . . . . . . . . Special Melee Weapon . | . . . . . . . . . . . . Unidentified Prototypes 5 | . 1 . . . . 4 . . . . . Corrupted Parts 1 | . . . . . . . . 1 . . . System Corruption 2 | . . . . . . . . 2 . . . Parts Lost 21 | . . . . 6 1 2 4 . 2 . 6 Power 5 | . . . . 2 . 2 . . 1 . . Propulsion 6 | . . . . 1 . . 2 . 1 . 2 Utility 7 | . . . . 2 . . 1 . . . 4 Weapon 3 | . . . . 1 1 . 1 . . . . Highest Loss Streak 3 | . . . . 3 1 1 1 . 1 . 2 To Critical Strikes . | . . . . . . . . . . . . Average Slot Usage (%) 91 | . 92 100 100 98 96 95 88 69 65 65 68 Engine 7 | . 13 14 14 12 2 4 7 . . 2 4 Core 2 | . . . . . 6 4 . 7 4 . . Treads 2 | . . . . . . 8 5 . . . . Leg 19 | . 6 . . 24 36 27 19 . . . . Wheel 4 | . 21 28 28 3 . . . . . . . Flight 3 | . . . . . . . 1 24 22 23 19 Device 8 | . 8 14 14 2 12 9 2 12 13 15 17 Storage 9 | . 14 14 14 14 9 9 7 1 . . . Processor 6 | . . . . . . 5 13 20 23 23 23 Protection 7 | . . . . 11 11 9 14 . . . . Energy Gun 1 | . . . . . 11 . . . . 1 4 Ballistic Gun 14 | . 26 2 . 25 . 16 15 1 . . . Launcher 2 | . . 22 28 2 . . . . . . . Naked Turns . | . . . . . . . . . . . . Heaviest Build 121 | 13 92 94 94 96 121 121 120 86 7 14 15 Greatest Support 40 | 20 26 26 26 26 40 40 40 15 15 15 15 Greatest Overweight (x) 38 | 1 8 3 3 9 3 3 38 5 . . 1 Average Overweight (x) 1 | . 2 3 3 3 2 2 3 . . . . Largest Inventory Capacity 25 | 8 25 25 25 25 25 25 25 25 5 5 5 Average Capacity 21 | 7 21 25 25 25 25 25 25 11 5 5 5 Most Carried 25 | 4 22 25 25 25 25 25 25 23 5 3 5 Average Carried 20 | 2 13 23 25 24 23 23 24 8 4 2 4 Final Capacity 25 | 8 25 25 25 25 25 25 25 5 5 5 5 Final Carried 25 | 4 22 25 25 24 23 25 23 5 3 3 4 Class Distribution -------------------- 65% | Mutant 18% | Commander-Mutant 6% | Scout 6% | Scavenger-Scout Dominant Class ---------------- Mutant | -10/Materials Mutant | -10/Mines Mutant | -10/Exiles Mutant | -9/Mines Mutant | -8/Materials Commander-Mutant | -8/Storage Mutant | -7/Factory Scavenger-Scout | -7/Waste Scavenger-Scout | -7/Factory Scout | -7/Lower Caves Scout | -7/Lower Caves Resources | -11 -10 -10 -10 -9 -8 -8 -7 -7 -7 -7 -7 ----------- Run | Scr Mat Min Exi Min Mat Sto Fac Was Fac Low Low Matter Collected 2784 | 244 77 14 . 871 449 225 354 . 20 269 261 Remotely . | . . . . . . . . . . . . Salvage Created 2577 | . 77 41 . 426 881 332 687 . . 133 . Parts 113 | . 8 3 . 6 51 19 26 . . . . Haulers Intercepted 1 | . . . . . . 1 . . . . . Recyclers Shooed 4 | . . . . . 1 3 . . . . . Parts Field Recycled . | . . . . . . . . . . . . Retrieved Matter . | . . . . . . . . . . . . Parts Self-Destructed 13 | . . . . . . . . . . 5 8 Prevented . | . . . . . . . . . . . . Kills | -11 -10 -10 -10 -9 -8 -8 -7 -7 -7 -7 -7 ------- Run | Scr Mat Min Exi Min Mat Sto Fac Was Fac Low Low Combat Hostiles Destroyed 56 | . 3 5 . 21 13 1 13 . . . . Guns 43 | . 3 . . 19 7 1 13 . . . . Cannons 4 | . . . . . 4 . . . . . . AOE 8 | . . 5 . 2 1 . . . . . . Classes Destroyed 13 | . 2 2 . 3 4 1 1 . . . . Worker 2 | . . . . 1 . 1 . . . . . Builder 4 | . . 2 . . 1 1 . . . . . Hauler 1 | . . . . . . 1 . . . . . Recycler 4 | . . . . 1 1 2 . . . . . Operator 1 | . . . . . 1 . . . . . . Watcher 5 | . 2 . . . 3 . . . . . . Swarmer 6 | . 3 3 . . . . . . . . . Grunt 22 | . . 2 . 3 6 1 10 . . . . Brawler 2 | . . . . . 2 . . . . . . Sentry 6 | . . . . . 3 1 2 . . . . Specialist 2 | . . . . . 2 . . . . . . Programmer 1 | . . . . . . . 1 . . . . Packrat 2 | . . . . . . . . . . 2 . Assembled 18 | . . . . 18 . . . . . . . Best Kill Streak 7 | . 3 7 . 5 5 2 3 . . . . Combat Bots Only 5 | . 3 5 . 4 3 1 3 . . . . Max Kills in Single Turn 3 | . 1 3 . 2 2 2 1 . . 1 . Gunslinging 1 | . . . . . 1 . . . . . . Exploded 3 | . . 3 . 1 1 . . . . . . Melee . | . . . . . . . . . . . . Uniques/NPCs Destroyed . | . . . . . . . . . . . . Combat | -11 -10 -10 -10 -9 -8 -8 -7 -7 -7 -7 -7 -------- Run | Scr Mat Min Exi Min Mat Sto Fac Was Fac Low Low Damage Taken 4426 | . 155 98 . 772 532 274 1522 . 283 112 678 Core 896 | . 7 . . 121 53 . 94 . 148 41 432 Absorbed by Shields 14 | . . . . . . . . . 10 . 4 Redirected to Shielding 3 | . . . . 3 . . . . . . . Regen/Repaired (Parts) 109 | . . . . . . 33 76 . . . . Core Remaining (%) 79 | 100 . . . 48 . 90 . . . . . Volleys Fired 197 | . 14 5 . 54 48 16 53 . . 7 . Largest 2 | . 2 2 . 2 2 2 2 . . 1 . Hottest 160 | . 100 66 . 66 160 50 50 . . 61 . Shots Fired 373 | . 26 10 . 107 94 32 97 . . 7 . Gun 319 | . 24 . . 103 56 32 97 . . 7 . Cannon 34 | . . . . . 34 . . . . . . Launcher 18 | . . 10 . 4 4 . . . . . . Special 2 | . 2 . . . . . . . . . . Kinetic 256 | . 24 . . 103 . 32 97 . . . . Thermal 43 | . 2 . . . 34 . . . . 7 . Explosive 18 | . . 10 . 4 4 . . . . . . Electromagnetic 56 | . . . . . 56 . . . . . . Robot Hit Streak 13 | . 4 . . 12 12 6 13 . . 5 . Robot Miss Streak 5 | . 4 . . 4 3 3 5 . . 1 . Penetration Max . | . . . . . . . . . . . . Secondary Targets 4 | . 1 . . 1 1 . 1 . . . . Max Gunslinging Chain 1 | . 1 . . 1 1 . 1 . . . . Shots Hit Robots 219 | . 11 . . 58 57 20 68 . . 5 . Core Hits 128 | . 6 10 . 40 30 11 27 . . 4 . Critical Kills 2 | . 1 . . 1 . . . . . . . Critical Parts Destroyed . | . . . . . . . . . . . . Critical Strikes 4 | . 1 . . 1 2 . . . . . . Destroy 2 | . 1 . . 1 . . . . . . . Corrupt 2 | . . . . . 2 . . . . . . Melee Attacks . | . . . . . . . . . . . . Impact . | . . . . . . . . . . . . Slashing . | . . . . . . . . . . . . Piercing . | . . . . . . . . . . . . Sneak Attacks . | . . . . . . . . . . . . Combat Hostiles . | . . . . . . . . . . . . Follow-up Attacks . | . . . . . . . . . . . . Damage Inflicted 5093 | . 137 676 . 1134 1427 407 1228 . . 84 . Guns 3252 | . 137 . . 880 551 372 1228 . . 84 . Cannons 489 | . . . . . 489 . . . . . . Explosions 1285 | . . 662 . 236 387 . . . . . . Melee . | . . . . . . . . . . . . Ramming 67 | . . 14 . 18 . 35 . . . . . Kinetic 2617 | . 137 . . 880 . 372 1228 . . . . Thermal 673 | . . . . . 589 . . . . 84 . Explosive 1185 | . . 662 . 236 287 . . . . . . Electromagnetic 551 | . . . . . 551 . . . . . . Impact . | . . . . . . . . . . . . Slashing . | . . . . . . . . . . . . Piercing . | . . . . . . . . . . . . Highest Corruption 13 | . . . . 5 . . 3 13 13 13 13 Average Corruption 7 | . . . . 5 . . 2 11 13 13 13 Corruption Purged . | . . . . . . . . . . . . Corruption Blocked . | . . . . . . . . . . . . Effects 88 | . . . . 33 . . 9 3 21 9 13 Message Errors 22 | . . . . 8 . . 1 1 5 4 3 Matter Fused 15 | . . . . 8 . . 2 1 2 1 1 Heat Flow Errors 11 | . . . . 3 . . 1 . 3 1 3 Energy Discharges 6 | . . . . 1 . . . 1 4 . . Parts Rejected 3 | . . . . . . . 2 . . . 1 Data Loss (minor) 10 | . . . . 5 . . . . 2 2 1 Data Loss (major) 6 | . . . . 2 . . 2 . 1 . 1 Misfires 1 | . . . . 1 . . . . . . . Alerts 5 | . . . . 3 . . . . 1 1 . Misdirections 6 | . . . . . . . . . 3 . 3 Weapon Failures 3 | . . . . 2 . . 1 . . . . Overload Shots . | . . . . . . . . . . . . Overflow Damage 70 | . . 48 . . 22 . . . . . . Projectiles 22 | . . . . . 22 . . . . . . Explosions 48 | . . 48 . . . . . . . . . Melee . | . . . . . . . . . . . . Knockbacks . | . . . . . . . . . . . . Impact . | . . . . . . . . . . . . Kinetic . | . . . . . . . . . . . . Secondary . | . . . . . . . . . . . . Self-Inflicted Damage 149 | . . 54 . 49 46 . . . . . . Shots 4 | . . 1 . 1 2 . . . . . . Rammed 1 | . . 1 . . . . . . . . . Targets Rammed 14 | . . 1 . 3 . 10 . . . . . Kicked 13 | . . . . 3 . 10 . . . . . Crushed . | . . . . . . . . . . . . Highest Temperature 369 | . 40 27 . 271 200 . 369 . 220 205 229 Average Temperature 118 | . 22 14 . 93 63 . 171 . 91 55 94 Received Heat Transfer 1394 | . . 45 . 192 198 90 741 . 80 18 30 Effects 5 | . . . . . . . 5 . . . . Energy Bleed 2 | . . . . . . . 2 . . . . Interference 2 | . . . . . . . 2 . . . . Damage (minor) 1 | . . . . . . . 1 . . . . Siege Activations . | . . . . . . . . . . . . Robots Corrupted 1 | . . . . . 1 . . . . . . Combat Hostiles 1 | . . . . . 1 . . . . . . Parts Fried 1 | . . . . . 1 . . . . . . Impact Corruptions . | . . . . . . . . . . . . Robots Melted . | . . . . . . . . . . . . Combat Hostiles . | . . . . . . . . . . . . Parts Melted 2 | . . . . . 1 . 1 . . . . Heat Transferred 1235 | . . . . . 1050 . . . . 185 . Parts Sabotaged . | . . . . . . . . . . . . Parts Stolen . | . . . . . . . . . . . . Parts Stripped . | . . . . . . . . . . . . Power Chain Reactions 2 | . . . . . 2 . . . . . . Missiles Intercepted . | . . . . . . . . . . . . Alert | -11 -10 -10 -10 -9 -8 -8 -7 -7 -7 -7 -7 ------- Run | Scr Mat Min Exi Min Mat Sto Fac Was Fac Low Low Peak Influence 449 | . 108 302 . 113 330 449 214 80 437 . . Initial 78 | . . 13 . . 5 78 70 50 56 . . Average 137 | . 39 132 . 22 162 265 89 65 184 . . Maximum Alert Level 2 | . . 1 . . 1 2 1 . 2 . . Low Security (%) 71 | 100 100 60 . 100 73 30 98 100 53 . . Level 1 25 | . . 39 . . 26 58 1 . 40 . . Level 2 3 | . . . . . . 10 . . 6 . . Level 3 . | . . . . . . . . . . . . Level 4 . | . . . . . . . . . . . . Level 5 . | . . . . . . . . . . . . High Security . | . . . . . . . . . . . . Max Security . | . . . . . . . . . . . . Squads Dispatched 18 | . 1 . . . 2 2 7 . 5 . 1 Investigation 6 | . . . . . . 1 2 . 3 . . Extermination 1 | . . . . . . . 1 . . . . Reinforcement 7 | . 1 . . . 2 1 1 . 2 . . Assault 1 | . . . . . . . . . . . 1 Garrison 3 | . . . . . . . 3 . . . . Intercept . | . . . . . . . . . . . . Searches Triggered . | . . . . . . . . . . . . Construction Impeded 1 | . . . . . . 1 . . . . . Haulers Reinforced 1 | . . . . . . . 1 . . . . Active Scanning Responses . | . . . . . . . . . . . . Cargo Convoy Interrupts . | . . . . . . . . . . . . Stealth | -11 -10 -10 -10 -9 -8 -8 -7 -7 -7 -7 -7 --------- Run | Scr Mat Min Exi Min Mat Sto Fac Was Fac Low Low Distress Signals 11 | . 1 1 . 1 2 3 . . 3 . . Communications Jammed . | . . . . . . . . . . . . Distress Signals . | . . . . . . . . . . . . Times Spotted 162 | . 7 4 . 24 23 23 14 6 25 14 22 Peak Tracking Total 18 | . 5 4 . 3 5 5 4 6 9 7 18 Tactical Retreats 18 | . . . . 1 1 1 . . 5 5 5 Traps | -11 -10 -10 -10 -9 -8 -8 -7 -7 -7 -7 -7 ------- Run | Scr Mat Min Exi Min Mat Sto Fac Was Fac Low Low Traps Triggered 9 | . 2 . . . . . 3 . 4 . . Indirectly . | . . . . . . . . . . . . Trap Hack Attempts . | . . . . . . . . . . . . Triggered . | . . . . . . . . . . . . Disarmed . | . . . . . . . . . . . . Reprogrammed . | . . . . . . . . . . . . Reused . | . . . . . . . . . . . . Traps Extracted . | . . . . . . . . . . . . Installed 1 | . . . . . 1 . . . . . . Triggered . | . . . . . . . . . . . . Most Traps Carried 3 | . . 3 3 3 3 . . . . . . Machines | -11 -10 -10 -10 -9 -8 -8 -7 -7 -7 -7 -7 ---------- Run | Scr Mat Min Exi Min Mat Sto Fac Was Fac Low Low Machines Disabled 4 | . . 1 . . 2 1 . . . . . Max in Single Turn 2 | . . 1 . . 2 . . . . . . Garrison Access 1 | . . . . . . . . . 1 . . Machines Sabotaged . | . . . . . . . . . . . . Garrisons Compromised . | . . . . . . . . . . . . Overloaded Fab Kills . | . . . . . . . . . . . . Hacking | -11 -10 -10 -10 -9 -8 -8 -7 -7 -7 -7 -7 --------- Run | Scr Mat Min Exi Min Mat Sto Fac Was Fac Low Low Machines Accessed 24 | . 5 . . 1 5 2 2 . 9 . . Terminals 18 | . 4 . . . 5 2 1 . 6 . . Fabricators 1 | . . . . . . . . . 1 . . Repair Stations . | . . . . . . . . . . . . Recycling Units 1 | . 1 . . . . . . . . . . Scanalyzers . | . . . . . . . . . . . . Garrison Access 3 | . . . . . . . 1 . 2 . . Total Hacks 61 | . 16 . . 1 16 3 4 . 21 . . Successful 35 | . 11 . . 1 11 2 1 . 9 . . Failed 25 | . 4 . . . 5 1 3 . 12 . . Catastrophic 7 | . 2 . . . 2 . 1 . 2 . . Database Lockouts 1 | . 1 . . . . . . . . . . Manual 41 | . 16 . . . 9 1 2 . 13 . . Terminals 47 | . 13 . . . 16 3 2 . 13 . . Fabricators 4 | . . . . . . . . . 4 . . Repair Stations . | . . . . . . . . . . . . Recycling Units 3 | . 3 . . . . . . . . . . Scanalyzers . | . . . . . . . . . . . . Garrison Access 6 | . . . . . . . 2 . 4 . . Terminal Hacks 19 | . 6 . . 1 7 2 . . 3 . . Robot Schematic 1 | . . . . . . 1 . . . . . Robot Analysis 4 | . 3 . . . 1 . . . . . . Prototype ID Bank 1 | . . . . . 1 . . . . . . Open Door 1 | . . . . 1 . . . . . . . Open DSF 1 | . . . . . . . . . 1 . . Branch Access Points 1 | . . . . . . . . . 1 . . Emergency Access Points 1 | . . . . . 1 . . . . . . Terminal Index 3 | . 1 . . . 1 . . . 1 . . Alert Level 3 | . 1 . . . 2 . . . . . . Unreport Threat 1 | . 1 . . . . . . . . . . Locate Traps 1 | . . . . . 1 . . . . . . Registered Prototypes 1 | . . . . . . 1 . . . . . Fabricator Hacks 2 | . . . . . . . . . 2 . . Load Schematic 1 | . . . . . . . . . 1 . . Build 1 | . . . . . . . . . 1 . . Repair Station Hacks . | . . . . . . . . . . . . Recycling Unit Hacks 3 | . 3 . . . . . . . . . . Process 1 | . 1 . . . . . . . . . . Retrieve Matter 1 | . 1 . . . . . . . . . . Retrieve Components 1 | . 1 . . . . . . . . . . Scanalyzer . | . . . . . . . . . . . . Garrison Access Hacks 1 | . . . . . . . . . 1 . . Seal Access 1 | . . . . . . . . . 1 . . Unauthorized Hacks 10 | . 2 . . . 4 . 1 . 3 . . Terminals 10 | . 2 . . . 4 . 1 . 3 . . Botnet 10 | . 2 . . . 4 . 1 . 3 . . Fabricators . | . . . . . . . . . . . . Repair Stations . | . . . . . . . . . . . . Recycling Units . | . . . . . . . . . . . . Scanalyzers . | . . . . . . . . . . . . Garrison Access . | . . . . . . . . . . . . Data Cores Recovered . | . . . . . . . . . . . . Used . | . . . . . . . . . . . . Hacking Detections 18 | . 3 . . . 5 1 2 . 7 . . Full Trace Events 3 | . . . . . . . 1 . 2 . . Feedback Events . | . . . . . . . . . . . . Feedback Blocked . | . . . . . . . . . . . . Robot Schematics Acquired 1 | . . . . . . 1 . . . . . Robots Built 4 | . . . . . . . . . 4 . . Authchips . | . . . . . . . . . . . . Time 81 | . . . . . . . . . 81 . . Total Robot Build Rating 4 | . . . . . . . . . 4 . . Part Schematics Acquired . | . . . . . . . . . . . . Parts Built . | . . . . . . . . . . . . Authchips . | . . . . . . . . . . . . Time . | . . . . . . . . . . . . Total Part Build Rating . | . . . . . . . . . . . . Parts Repaired . | . . . . . . . . . . . . Time . | . . . . . . . . . . . . Parts Recycled . | . . . . . . . . . . . . Recycled Matter 2 | . 2 . . . . . . . . . . Retrieved Matter 2 | . 2 . . . . . . . . . . Retrieved Components . | . . . . . . . . . . . . Parts Scanalyzed . | . . . . . . . . . . . . Part Schematics Acquired . | . . . . . . . . . . . . Parts Damaged . | . . . . . . . . . . . . Bothacking | -11 -10 -10 -10 -9 -8 -8 -7 -7 -7 -7 -7 ------------ Run | Scr Mat Min Exi Min Mat Sto Fac Was Fac Low Low Used RIF Installer . | . . . . . . . . . . . . Robots Hacked . | . . . . . . . . . . . . Non-combat . | . . . . . . . . . . . . Combat . | . . . . . . . . . . . . Robot Hacks Applied . | . . . . . . . . . . . . Relay Couplers Released . | . . . . . . . . . . . . Fabnet Peak Effective % . | . . . . . . . . . . . . Robots Rewired . | . . . . . . . . . . . . Allies Hacked . | . . . . . . . . . . . . Hacks Repelled . | . . . . . . . . . . . . Allies | -11 -10 -10 -10 -9 -8 -8 -7 -7 -7 -7 -7 -------- Run | Scr Mat Min Exi Min Mat Sto Fac Was Fac Low Low Total Allies 19 | . . . . 3 . 12 . . 4 . . Largest Group 12 | . . . . 3 . 12 6 . 4 . . Highest-Rated Group 278 | . . . . 40 . 278 167 . 20 . . Highest-Rated Ally 100 | . . . . 16 . 100 87 . 5 . . Total Orders . | . . . . . . . . . . . . Ally Attacks 93 | . . . . 13 . 49 15 . 16 . . Total Damage 2393 | . . . . 102 . 2047 174 . 70 . . Kills 26 | . . . . 1 . 24 1 . . . . Allies Corrupted . | . . . . . . . . . . . . Allies Melted . | . . . . . . . . . . . . Intel | -11 -10 -10 -10 -9 -8 -8 -7 -7 -7 -7 -7 ------- Run | Scr Mat Min Exi Min Mat Sto Fac Was Fac Low Low Robot Analysis Total 4 | . 3 . . . 1 . . . . . . Derelict Logs Recovered 4 | . . 1 . 1 . . . . . 2 . Drone Launches . | . . . . . . . . . . . . Drone Recoveries . | . . . . . . . . . . . . Exploration | -11 -10 -10 -10 -9 -8 -8 -7 -7 -7 -7 -7 ------------- Run | Scr Mat Min Exi Min Mat Sto Fac Was Fac Low Low Turns Passed 8797 | 61 745 287 268 1936 905 2426 911 111 551 334 262 Spaces Moved 4936 | 41 492 183 199 538 269 691 212 151 1082 573 505 Core 465 | 7 . . . . . . 2 . 164 272 20 Treads 9 | . . . . . . . 9 . . . . Legs 1682 | 34 114 . . 373 269 691 201 . . . . Wheels 925 | . 378 183 199 165 . . . . . . . Hover . | . . . . . . . . . . . . Flight 1855 | . . . . . . . . 151 918 301 485 Fastest Speed 29 | 50 120 135 135 135 260 260 260 29 29 29 29 Average Speed 150 | 112 131 135 135 319 264 327 362 35 32 38 31 Slowest Speed 1950 | 120 200 135 135 400 330 330 1950 379 50 50 100 Overloaded Moves . | . . . . . . . . . . . . Propulsion Burnouts . | . . . . . . . . . . . . Robots Hopped 34 | . . . . . . . . . 19 . 15 Cave-ins Triggered . | . . . . . . . . . . . . Exploration Rate (%) 54 | 3 70 51 60 90 27 91 7 84 33 60 73 Regions Visited 11 Branch Regions 6 Pre-discovered Areas 1 | . . 1 . . . . . . . . . Known Exits Taken 3 | . . . . . 1 . . . 1 1 . Unknown Exits Taken 6 | 1 1 1 1 1 . 1 . . . . . Scrap Searched 6 | . . 1 . 1 . . . . . 2 2 Spaces Dug 40 | . 2 . . 25 13 . . . . . . Terrain Destroyed 150 | . 2 61 . 47 40 . . . . . . Melee . | . . . . . . . . . . . . Projectile 14 | . 2 . . . 12 . . . . . . AOE 136 | . . 61 . 47 28 . . . . . . Terrain Rammed . | . . . . . . . . . . . . Walls Destroyed . | . . . . . . . . . . . . Machines Disabled . | . . . . . . . . . . . . Actions | -11 -10 -10 -10 -9 -8 -8 -7 -7 -7 -7 -7 --------- Run | Scr Mat Min Exi Min Mat Sto Fac Was Fac Low Low Total 5920 | 53 557 212 198 645 386 822 299 212 1267 676 593 Wait 506 | 1 20 17 . 19 13 51 3 35 168 88 91 Move 4864 | 40 491 182 198 537 268 690 212 150 1048 572 476 Hop 28 | . . . . . . . . . 14 . 14 Pick Up 90 | 6 18 4 . 10 16 21 6 3 4 2 . Fast Attach 35 | 4 8 . . 4 3 5 7 1 . . 3 Attach 42 | 2 . . . 7 6 3 6 10 2 3 3 Detach 9 | . . . . . 1 . 2 . . 1 5 Swap 24 | . 3 2 . 2 10 4 3 . . . . Drop 81 | . 3 1 . 9 20 22 7 13 5 . 1 Fire 197 | . 14 5 . 54 48 16 53 . . 7 . Melee . | . . . . . . . . . . . . Ram 1 | . . 1 . . . . . . . . . Kick 13 | . . . . 3 . 10 . . . . . Crush . | . . . . . . . . . . . . Escape Stasis 26 | . . . . . . . . . 26 . . Rewire 3 | . . . . . . . . . . 3 . Trap 1 | . . . . . 1 . . . . . . Miscellaneous . | . . . . . . . . . . . . Route ------- -11/Scrapyard -10/Materials (discovered 3 exits: [*Mat x2] / [*Min]) -10/Mines -10/Exiles -9/Mines (discovered 2 exits: *Mat x2) -8/Materials -8/Storage (discovered 2 exits: *Fac / [*Rec]) -7/Factory -7/Waste -7/Factory (discovered 3 exits: *Fac / *Low x2) -7/Lower Caves -7/Lower Caves (discovered 1 exit: *Fac) History --------- Turn | Location | Event 20 | -11/Scrapyard | Discovered new exit (range 15) 62 | -11/Scrapyard | Entered Materials 316 | -10/Materials | Build established: Mutant 331 | -10/Materials | Discovered new exit (range 10) 667 | -10/Materials | Discovered new exit (range 14) 777 | -10/Materials | Discovered new exit (range 5) 798 | -10/Materials | Central database locked down 807 | -10/Materials | Entered Mines 808 | -10/Mines | Learned location of Storage (-8) 890 | -10/Mines | Learned Materials trap positions 1022 | -10/Mines | Found a hidden stash of uninstalled traps 1087 | -10/Mines | Deemed a non-threat by the Exiles lab entrance 1089 | -10/Mines | Discovered new exit (range 5) 1094 | -10/Mines | Entered Exiles 1094 | -10/Exiles | Found Exiles lab abandoned 1347 | -10/Exiles | Discovered new exit (range 14) 1362 | -10/Exiles | Entered Mines 1411 | -9/Mines | Assisted by bots powering up and referring to "LRC-V3" 1444 | -9/Mines | Assembled infested the area 1449 | -9/Mines | Assisted by a Guerilla fighting off Assembled 1660 | -9/Mines | Lost 3 parts (1p1n1u) 2657 | -9/Mines | Discovered new exit (range 10) 3024 | -9/Mines | Core integrity fell below 50% 3182 | -9/Mines | Discovered new exit (range 7) 3211 | -9/Mines | Met a Derelict who couldn't figure out how to use a Trap Extractor 3298 | -9/Mines | Entered Materials 3298 | -8/Materials | Evolved 4 slots: Propulsion x2, Utility x2 3299 | -8/Materials | Identified exit to Storage 3300 | -8/Materials | Loaded intel: 11 trap records 4203 | -8/Materials | Entered Storage 4263 | -8/Storage | Met 01-MTF 4736 | -8/Storage | Discovered new exit (range 6) 5147 | -8/Storage | Found Prototype Protection 5147 | -8/Storage | Identified Lgt. Regenerative Plating 5342 | -8/Storage | Assisted by bots powering up and referring to "LRC-V3" 5635 | -8/Storage | Build established: Commander-Mutant 5914 | -8/Storage | Discovered new exit (range 7) 6629 | -8/Storage | Entered Factory 6629 | -7/Factory | Accompanied by 6 allies (01-MTF) 6629 | -7/Factory | Evolved 2 slots: Utility x2 6634 | -7/Factory | 01-MTF left 7263 | -7/Factory | Build established: Mutant 7285 | -7/Factory | Garrison activated, responded to threat 7540 | -7/Factory | Sucked down chute 7540 | -7/Factory | Entered Waste 7555 | -7/Waste | EMP discharged 7555 | -7/Waste | System corruption reached 10% 7571 | -7/Waste | Spotted C-40 Crusher 7585 | -7/Waste | Spotted C-40 Crusher 7597 | -7/Waste | Spotted C-40 Crusher 7598 | -7/Waste | Spotted C-40 Crusher 7599 | -7/Waste | Spotted C-40 Crusher 7647 | -7/Waste | Discovered new exit (range 10) 7647 | -7/Waste | Spotted C-40 Crusher 7650 | -7/Waste | Identified exit to Factory 7651 | -7/Waste | Entered Factory 7849 | -7/Factory | Build established: Scavenger-Scout 7938 | -7/Factory | Identified exit to Lower Caves 7964 | -7/Factory | Discovered new exit (range 11) 8099 | -7/Factory | Fabricated S-10 Pest? 8202 | -7/Factory | Entered Lower Caves 8223 | -7/Lower Caves | Encountered a Warlord checkpoint 8245 | -7/Lower Caves | Identified exit to Lower Caves 8457 | -7/Lower Caves | Attracted the attention of an 0b10 outpost 8463 | -7/Lower Caves | Build established: Scout 8536 | -7/Lower Caves | Entered another Lower Caves area 8548 | -7/Lower Caves | Discovered new exit (range 11) 8554 | -7/Lower Caves | Identified exit to Factory 8682 | -7/Lower Caves | Attracted the attention of an 0b10 checkpoint 8692 | -7/Lower Caves | Attracted the attention of an 0b10 outpost 8716 | -7/Lower Caves | Core integrity fell below 50% 8787 | -7/Lower Caves | Core integrity fell below 20% 8798 | -7/Lower Caves | Destroyed by S-27 Virus with Autogun Last Messages --------------- 08696_ Slug penetrates Wall. 08705_ Searching scrap... 08705_ Found Minigun. 08705_ Found Field Laser. 08705_ Found 19 Matter. 08706_ Acquired 19 matter. 08711_ Acquired 71 matter. 08713_ Seismic Detector destroyed. 08714_ System corrupted: Imp. VTOL Module rejected. 08715_ Imp. Sensor Array destroyed. 08716_ Acquired Imp. VTOL Module. 08749_ Imp. Terrain Scanner destroyed. 08755_ Imp. Shield Generator destroyed. 08756_ System corrupted: Heat flow error (+217). 08773_ Acquired 47 matter. 08774_ Acquired 56 matter. 08775_ Acquired 22 matter. 08779_ Y9IMGOBP0,2FUP,G<%FXW